{"text_format":"3","workbook":"xlsx","n_sheets":6,"sheets":["СЕМЕСТР","БАЛЛЫ","БЮДЖЕТ","ЧИСТЫЕ ЕЖЕМЕСЯЧНЫЕ РАСХОДЫ","РАСХОДЫ ЗА СЕМЕСТР","КНИГИ"],"not_rendered":{"defined_names":21},"read":"whole","date_system":"1900"}

{"sheet":"СЕМЕСТР","index":0,"n_rows":29,"n_cols":9,"rows_kept":29,"merged":[[2,3,2,4]]}
[null,"РАСПИСАНИЕ МОИХ ЗАНЯТИЙ"]
[null,"ПЕРВЫЙ СЕМЕСТР"]
[null,null,"ВРЕМЯ НАЧАЛА","ИНТЕРВАЛ ВРЕМЕНИ",null,"ГОД"]
[null,null,"09:00:00",60,"(в минутах)"]
[null,"ВРЕМЯ ","ПН","ВТ","СР","ЧТ","ПТ","СБ","ВС"]
[null,{"$f":"ВРЕМЯ_НАЧАЛА+TIME(0,(ROW(A1)-1)*ИНТЕРВАЛ_ВРЕМЕНИ,0)","v":"09:00:00"},"Завтрак","Завтрак","Завтрак","Завтрак","Завтрак"]
[null,"10:00:00","Бизнес: лекция, корпус B, аудитория 256"]
[null,"11:00:00",{"$nulls":3},"Физика: лаборатория \nкорпус J, аудитория 309"]
[null,"12:00:00"]
[null,"13:00:00"]
[null,"14:00:00"]
[null,"15:00:00"]
[null,"16:00:00"]
[null,"17:00:00"]
[null,"18:00:00"]
[null,"19:00:00"]
[null,"20:00:00"]
[null,"21:00:00"]
[null,"22:00:00"]
[null,"23:00:00"]
[null,1]
[null,1.0416666666666665]
[null,1.0833333333333335]
[null,1.125]
[null,1.1666666666666665]
[null,1.2083333333333335]
[null,1.25]
[null,1.2916666666666665]
[null,1.3333333333333335]

{"sheet":"БАЛЛЫ","index":1,"n_rows":17,"n_cols":8,"rows_kept":17}
[null,"КОЛЛЕДЖ "]
[null,"ПЛАНИРОВЩИК БАЛЛОВ"]
[null,"Наименование степени",{"$f":"Год","v":"ГОД"}]
[null,"ОБЩИЙ ХОД ВЫПОЛНЕНИЯ",null,"ОБЩИЙ ХОД ВЫПОЛНЕНИЯ"]
[null,{"$f":"AVERAGE(БАЛЛЫ!$G$15:$G$17)","v":3.5},{"$f":"IFERROR(TEXT(AVERAGEIF(БАЛЛЫ!$F$15:$F$17,\"Да\",БАЛЛЫ!$G$15:$G$17),\"0,00\"),\"0,00\")&\" Текущее значение GPA\"","v":"3,50 Текущее значение GPA"},{"$f":"COUNTIF(БАЛЛЫ!$F$15:$F$17,\"Да\")/COUNTA(БАЛЛЫ!$B$15:$B$17)","v":0.6666666666666666},{"$f":"TEXT(COUNTIF(БАЛЛЫ!$F$15:$F$17,\"Да\")/COUNTA(БАЛЛЫ!$B$15:$B$17),\"0%\")&\" Выполнено\"","v":"67% Выполнено"}]
[null,"Примечание. Эта сводка баллов автоматически заполняется на основе данных, указанных вами в расположенной ниже таблице «Курсы в колледже»."]
[null,"ТРЕБОВАНИЕ","ИТОГО БАЛЛОВ","ПОЛУЧЕНО БАЛЛОВ","ТРЕБУЕТСЯ"]
[null,"Основной общеобразовательный предмет",{"$f":"IF(SUMIF(БАЛЛЫ!$D$15:$D$17,БАЛЛЫ!$B8,БАЛЛЫ!$E$15:$E$17)=0,\"0\",SUMIF(БАЛЛЫ!$D$15:$D$17,БАЛЛЫ!$B8,БАЛЛЫ!$E$15:$E$17))","v":4},{"$f":"SUMIFS(БАЛЛЫ!$E$15:$E$17,БАЛЛЫ!$D$15:$D$17,БАЛЛЫ!$B8,БАЛЛЫ!$F$15:$F$17,\"Да\")","v":4},{"$f":"SUMIF(БАЛЛЫ!$D$15:$D$17,БАЛЛЫ!$B8,БАЛЛЫ!$E$15:$E$17)-SUMIFS(БАЛЛЫ!$E$15:$E$17,БАЛЛЫ!$D$15:$D$17,БАЛЛЫ!$B8,БАЛЛЫ!$F$15:$F$17,\"Да\")","v":0}]
[null,"Второстепенный общеобразовательный предмет",{"$f":"IF(SUMIF(БАЛЛЫ!$D$15:$D$17,БАЛЛЫ!$B9,БАЛЛЫ!$E$15:$E$17)=0,\"0\",SUMIF(БАЛЛЫ!$D$15:$D$17,БАЛЛЫ!$B9,БАЛЛЫ!$E$15:$E$17))","v":3},{"$f":"SUMIFS(БАЛЛЫ!$E$15:$E$17,БАЛЛЫ!$D$15:$D$17,БАЛЛЫ!$B9,БАЛЛЫ!$F$15:$F$17,\"Да\")","v":0},{"$f":"SUMIF(БАЛЛЫ!$D$15:$D$17,БАЛЛЫ!$B9,БАЛЛЫ!$E$15:$E$17)-SUMIFS(БАЛЛЫ!$E$15:$E$17,БАЛЛЫ!$D$15:$D$17,БАЛЛЫ!$B9,БАЛЛЫ!$F$15:$F$17,\"Да\")","v":3}]
[null,"Факультативный курс",{"$f":"IF(SUMIF(БАЛЛЫ!$D$15:$D$17,БАЛЛЫ!$B10,БАЛЛЫ!$E$15:$E$17)=0,\"0\",SUMIF(БАЛЛЫ!$D$15:$D$17,БАЛЛЫ!$B10,БАЛЛЫ!$E$15:$E$17))","v":2},{"$f":"SUMIFS(БАЛЛЫ!$E$15:$E$17,БАЛЛЫ!$D$15:$D$17,БАЛЛЫ!$B10,БАЛЛЫ!$F$15:$F$17,\"Да\")","v":2},{"$f":"SUMIF(БАЛЛЫ!$D$15:$D$17,БАЛЛЫ!$B10,БАЛЛЫ!$E$15:$E$17)-SUMIFS(БАЛЛЫ!$E$15:$E$17,БАЛЛЫ!$D$15:$D$17,БАЛЛЫ!$B10,БАЛЛЫ!$F$15:$F$17,\"Да\")","v":0}]
[null,"Общий учебный курс",{"$f":"IF(SUMIF(БАЛЛЫ!$D$15:$D$17,БАЛЛЫ!$B11,БАЛЛЫ!$E$15:$E$17)=0,\"0\",SUMIF(БАЛЛЫ!$D$15:$D$17,БАЛЛЫ!$B11,БАЛЛЫ!$E$15:$E$17))","v":"0"},{"$f":"SUMIFS(БАЛЛЫ!$E$15:$E$17,БАЛЛЫ!$D$15:$D$17,БАЛЛЫ!$B11,БАЛЛЫ!$F$15:$F$17,\"Да\")","v":0},{"$f":"SUMIF(БАЛЛЫ!$D$15:$D$17,БАЛЛЫ!$B11,БАЛЛЫ!$E$15:$E$17)-SUMIFS(БАЛЛЫ!$E$15:$E$17,БАЛЛЫ!$D$15:$D$17,БАЛЛЫ!$B11,БАЛЛЫ!$F$15:$F$17,\"Да\")","v":0}]
[null,"Итого",{"$f":"SUBTOTAL(109,БАЛЛЫ!$C$8:$C$11)","v":9},{"$f":"SUBTOTAL(109,БАЛЛЫ!$D$8:$D$11)","v":6},{"$f":"SUBTOTAL(109,БАЛЛЫ!$E$8:$E$11)","v":3}]
[null,"Курсы"]
[null,"НАЗВАНИЕ КУРСА","№ КУРСА","ТРЕБУЕТСЯ","БАЛЛЫ","ВЫПОЛНЕНО","СТЕПЕНЬ","СЕМЕСТР"]
[null,"Курс 1","Число","Основной общеобразовательный предмет",4,"Да",{"v":4,"d":"4.0"},"Семестр 1"]
[null,"Курс 2","Число","Второстепенный общеобразовательный предмет",3,"Нет",null,"Семестр 1"]
[null,"Курс 3","Число","Факультативный курс",2,"Да",{"v":3,"d":"3.0"},"Семестр 1"]

{"sheet":"БЮДЖЕТ","index":2,"n_rows":15,"n_cols":4,"rows_kept":15,"merged":[[5,1,5,2]]}
[null,{"$f":"КОЛЛЕДЖ","v":"КОЛЛЕДЖ "}]
[null,"КОНТРОЛЬ БЮДЖЕТА"]
[null,"Мой бюджет",{"$f":"Год","v":"ГОД"}]
[null,"СООТНОШЕНИЕ РАСХОДОВ И ДОХОДОВ"]
[null,{"$f":"ЧИСТЫЕ_ЕЖЕМЕСЯЧНЫЕ_РАСХОДЫ/ЧИСТЫЙ_ЕЖЕМЕСЯЧНЫЙ_ДОХОД","v":{"v":0.7454545454545455,"d":"1 ₽"}}]
[null,{"$f":"B5","v":0.7454545454545455}]
[null,"ЧИСТЫЙ ЕЖЕМЕСЯЧНЫЙ ДОХОД","ЧИСТЫЕ ЕЖЕМЕСЯЧНЫЕ РАСХОДЫ","ОСТАТОК"]
[null,{"$f":"C10","v":{"v":27500,"d":"27,500 ₽"}},{"$f":"'ЧИСТЫЕ ЕЖЕМЕСЯЧНЫЕ РАСХОДЫ'!C4+'РАСХОДЫ ЗА СЕМЕСТР'!D4","v":{"v":20500,"d":"20,500 ₽"}},{"$f":"ЧИСТЫЙ_ЕЖЕМЕСЯЧНЫЙ_ДОХОД-ЧИСТЫЕ_ЕЖЕМЕСЯЧНЫЕ_РАСХОДЫ","v":{"v":7000,"d":"7,000 ₽"}}]
[null,"Месяцев в семестре",4]
[null,"ДОХОДЫ ЗА МЕСЯЦ",{"$f":"SUM(ДОХОДЫ_ЗА_МЕСЯЦ[СУММА])","v":{"v":27500,"d":"27,500 р."}}]
[null,"СТАТЬЯ","СУММА"]
[null,"Фиксированный доход",{"v":15000,"d":"15,000 ₽"}]
[null,"Финансовая помощь",{"v":5000,"d":"5,000 ₽"}]
[null,"Кредиты",{"v":5000,"d":"5,000 ₽"}]
[null,"Другие доходы",{"v":2500,"d":"2,500 ₽"}]

{"sheet":"ЧИСТЫЕ ЕЖЕМЕСЯЧНЫЕ РАСХОДЫ","index":3,"n_rows":15,"n_cols":3,"rows_kept":15}
[null,{"$f":"КОЛЛЕДЖ","v":"КОЛЛЕДЖ "}]
[null,"КОНТРОЛЬ БЮДЖЕТА"]
[null,"Расходы за месяц",{"$f":"Год","v":"ГОД"}]
[null,"РАСХОДЫ ЗА МЕСЯЦ",{"$f":"SUM(РАСХОДЫ_ЗА_МЕСЯЦ[СУММА])","v":{"v":16750,"d":"16,750 ₽"}}]
[null,"СТАТЬЯ","СУММА"]
[null,"Аренда",{"v":3000,"d":"3,000 ₽"}]
[null,"Коммунальные услуги",{"v":500,"d":"500 ₽"}]
[null,"Сотовый телефон",{"v":750,"d":"750 ₽"}]
[null,"Продовольственные товары",{"v":2500,"d":"2,500 ₽"}]
[null,"Расходы на авто",{"v":500,"d":"500 ₽"}]
[null,"Студенческие кредиты",{"v":5000,"d":"5,000 ₽"}]
[null,"Кредитные карты",{"v":2750,"d":"2,750 ₽"}]
[null,"Страхование",{"v":1250,"d":"1,250 ₽"}]
[null,"Развлечения",{"v":500,"d":"500 ₽"}]
[null,"Разное",{"v":0,"d":"0 ₽"}]

{"sheet":"РАСХОДЫ ЗА СЕМЕСТР","index":4,"n_rows":11,"n_cols":4,"rows_kept":11}
[null,{"$f":"КОЛЛЕДЖ","v":"КОЛЛЕДЖ "}]
[null,"КОНТРОЛЬ БЮДЖЕТА"]
[null,"Расходы за семестр",{"$f":"Год","v":"ГОД"}]
[null,"РАСХОДЫ ЗА СЕМЕСТР (итого/в месяц)",{"$f":"SUM(РАСХОДЫ_ЗА_СЕМЕСТР[СУММА])","v":{"v":15000,"d":"15,000 ₽"}},{"$f":"SUM(РАСХОДЫ_ЗА_СЕМЕСТР[В МЕСЯЦ])","v":{"v":3750,"d":"3,750 ₽"}}]
[null,"СТАТЬЯ","СУММА","В МЕСЯЦ"]
[null,"Обучение",{"v":7500,"d":"7,500 ₽"},{"$f":"РАСХОДЫ_ЗА_СЕМЕСТР[[#This Row],[СУММА]]/Месяцев_в_семестре","v":{"v":1875,"d":"1,875 ₽"}}]
[null,"Стоимость лабораторного оборудования",{"v":2500,"d":"2,500 ₽"},{"$f":"РАСХОДЫ_ЗА_СЕМЕСТР[[#This Row],[СУММА]]/Месяцев_в_семестре","v":{"v":625,"d":"625 ₽"}}]
[null,"Книги",{"v":5000,"d":"5,000 ₽"},{"$f":"РАСХОДЫ_ЗА_СЕМЕСТР[[#This Row],[СУММА]]/Месяцев_в_семестре","v":{"v":1250,"d":"1,250 ₽"}}]
[null,"Залоги",{"v":0,"d":"0 ₽"},{"$f":"РАСХОДЫ_ЗА_СЕМЕСТР[[#This Row],[СУММА]]/Месяцев_в_семестре","v":{"v":0,"d":"0 ₽"}}]
[null,"Транспорт",{"v":0,"d":"0 ₽"},{"$f":"РАСХОДЫ_ЗА_СЕМЕСТР[[#This Row],[СУММА]]/Месяцев_в_семестре","v":{"v":0,"d":"0 ₽"}}]
[null,"Другие расходы",{"v":0,"d":"0 ₽"},{"$f":"РАСХОДЫ_ЗА_СЕМЕСТР[[#This Row],[СУММА]]/Месяцев_в_семестре","v":{"v":0,"d":"0 ₽"}}]

{"sheet":"КНИГИ","index":5,"n_rows":7,"n_cols":7,"rows_kept":7}
[null,{"$f":"КОЛЛЕДЖ","v":"КОЛЛЕДЖ "}]
[null,"УЧЕТ КНИГ"]
[null,"Список книг"]
[null,"ЗАГОЛОВОК","АВТОР","КУРС","ГДЕ КУПИТЬ?","Код ISBN","ПРИМЕЧАНИЯ"]
[null,"Название книги","Автор","Курс","Расположение","Число"]
[null,"Название книги","Автор","Курс","Расположение","Число"]
[null,"Название книги","Автор","Курс","Расположение","Число"]